{"text_format":"2","workbook":"xlsx","n_sheets":1,"sheets":["Sheet1"],"not_rendered":{"charts":0,"images":0,"macros":0,"external_links":0,"defined_names":0,"comments":0,"pivot_tables":0},"unopened":[],"bounds":{"document_bytes":16777216,"sheet_cells":100000,"run_cost":"one","rows_first":2000,"rows_last":500,"rows_between":2000,"halvings":0,"cell_chars":16384,"cell_head_chars":4096},"cells_cut":0,"cells_raw":0,"read":"whole","date_system":"1900"}

{"sheet":"Sheet1","index":0,"n_rows":26,"n_cols":66,"rows_kept":26,"cut":false,"hidden":false,"merged":[[0,33,0,64],[0,0,1,0],[0,1,0,3],[0,4,0,18],[0,19,0,22],[0,23,0,32]]}
["校名","基本的事項",null,null,"生活",{"$nulls":14},"所持品",null,null,null,"身体等",{"$nulls":9},"服装等"]
[null,"制定主体","根拠文書名","改定方法","休憩時間(分)","商店での購入有無","商店での購入","体操服登校有無","体操服登校","財工事服装有無","在校時服装","清掃時発言有無","清掃時発言","移動時の隊列有無","移動時の隊列","他教室の出入り有無","他教室の出入り","他学年の廊下への出入り有無","他学年の廊下への出入り","携帯電話有無","携帯電話","制汗剤等の使用有無","制汗剤等の使用","髪型の性差有無","髪型の性差","男女差異の具体的項目有無","男女差異の具体的項目","男子髪型有無","その他髪型の規定","パーマ有無","パーマ","髪染め有無","髪染め","靴下色有無","靴下色","靴下長さ等有無","靴下長さ等","靴色有無","靴色","靴形態等有無","靴形態等","髪ゴム有無","髪ゴム","コート色有無","コート色","コート種類有無","コート種類","マフラー有無","マフラー","制服の男女別差異有無","制服の男女別差異","過剰な男女差異有無","過剰な男女差異","女子ボトム有無","女子ボトム","スカート丈有無","スカート丈","タイツ等可否有無","タイツ等可否","タイツ等色有無","タイツ等色","ベルト色有無","ベルト色","ベルト形態有無","ベルト形態","備考"]
["追浜中","明記なし","校内生活のきまり(ルールやマナー)","明記なし","明記なし",1,"禁止",0,"明記なし",0,"明記なし",0,"明記なし",0,"明記なし",1,"禁止",1,"禁止",1,"保護者の連絡が必要",0,"明記なし",0,"なし",0,"性差なし",1,"流行を極端に追う要素の高いもの",1,"禁止",1,"禁止",0,"明記なし",1,"明記なし",1,"白色基調",0,"運動に適した靴",0,"明記なし",0,"明記なし",0,"明記なし",0,"明記なし",1,"あり",0,"明記なし",1,"暗にスカートと規定",1,"膝が隠れる程度",0,"明記なし",0,"明記なし",0,"明記なし",0,"明記なし","制服を定める文書の不足ありか"]
["鷹取中","明記なし","有意義な学校生活をすごすために","明記なし",10,0,"明記なし",1,"不可",0,"制服か体操服",0,"明記なし",0,"明記なし",0,"明記なし",0,"明記なし",1,"原則禁止",0,"明記なし",1,"あり(男子のみ)",1,"男子の長髪を想定していない",1,"極端な刈り上げや髪型の禁止",1,"禁止",1,"禁止",1,"白、無地",1,"くるぶしが隠れるもの",0,"明記なし",1,"運動のできる紐靴",1,"黒、茶、紺",0,"制限なし",1,"ダッフルコート、Pコート、スクールコート",0,"制限なし",1,"あり",1,"女子の夏季の校章はフェルトに校章をつけ、安全ピンでつける",0,"明記なし",1,"ひざが隠れる程度",1,"使用可能",1,"ベージュ",1,"黒、茶",1,"華美でないもの"]
["田浦中","明記なし","私たちの生活の心得、楽しい学校生活を送るために","集団の承認のもとに決まりを改良する　　",10,1,"禁止。特別な場合のみ許可を取る。",1,"原則不可。登校後すぐ着替える。",1,"体操服",0,"明記なし",1,"整列移動",1,"禁止",1,"禁止",1,"許可制",0,"明記なし",1,"あり",1,"男子の長髪の禁止",1,"ツーブロック、流行性のある髪型の禁止",1,"禁止",1,"禁止",1,"白、無地",1,"くるぶしが隠れるもの",0,"明記なし",1,"ジョギング型の紐靴",1,"黒、茶、紺",1,"黒、紺、茶、灰",1,"ダッフルコート、pコート",0,"明記なし",1,"あり",0,"明記なし",1,"暗にスカートと規定",1,"ひざが隠れる程度",0,"明記なし",0,"明記なし",1,"黒、茶、紺",1,"極端に細く無いもの"]
["坂本中","明記なし","学校生活のきまり、約束","明記なし",10,1,"禁止",1,"不可",0,"制服か体操服",0,"明記なし",0,"明記なし",0,"明記なし",0,"明記なし",1,"禁止",0,"通年使用可",0,"なし",1,"性差なし",1,"部分的な刈り上げ等の禁止",1,"禁止",1,"禁止",1,"白、無地",1,"くるぶしが隠れるもの",0,"明記なし",1,"紐靴の運動靴",1,"黒、茶、紺",1,"黒、紺、灰",1,"ダッフルコート、pコート",0,"制限なし",1,"あり",0,"女子のみワイシャツか白丸衿ブラウスを選べる",0,"ズボン選択可能",1,"ひざが隠れる程度",1,"使用可能",0,"明記なし",1,"黒、紺（茶系不可）",1,"極端に細く無いもの。"]
["不入斗中","明記なし","私たちの生活の確認事項","明記なし","明記なし",1,"禁止",0,"明記なし",1,"原則制服",0,"明記なし",0,"明記なし",1,"禁止",0,"明記なし",1,"禁止",1,"使用不可",1,"あり(男子のみ)",1,"男子の長髪を想定していない",1,"奇抜な髪型にならないようにする。",1,"禁止",1,"禁止",1,"白、無地",1,"くるぶしが隠れるもの",0,"明記なし",0,"スポーツシューズ",1,"黒、茶、紺",0,"制限なし",1,"無地",0,"使用可",1,"あり",1,"女子には指定ベストあり",1,"暗にスカートと規定",1,"ひざが隠れる程度",1,"使用可能",1,"黒",1,"黒、茶、紺",1,"華美で無いもの"]
["常葉中","明記なし","生徒の心得","明記なし",10,1,"禁止",0,"明記なし",1,"更衣が必要な授業がある場合のみ着替える",0,"明記なし",1,"整列移動",1,"禁止",1,"通らないようにする",1,"原則禁止",1,"使用不可",1,"あり(男子のみ)",1,"男子の長髪を想定していない",1,"華美にならないもの",1,"禁止",1,"禁止",1,"白、無地(ライン不可)",1,"くるぶしが隠れるもの",1,"白地",0,"ランニングシューズ",1,"黒、茶、紺",1,"黒、紺、灰",1,"ダッフルコート、pコート",0,"明記なし",1,"あり",0,"明記なし",0,"明記なし",1,"ひざが隠れる程度",0,"明記なし",0,"明記なし",1,"黒、茶の単色",1,"平たいもの"]
["公郷中","明記なし","公郷中学でよりよく過ごすために","明記なし",10,1,"パン、おにぎりのみ購入可能",1,"禁止",0,"明記なし",0,"明記なし",0,"明記なし",0,"明記なし",0,"明記なし",1,"許可制",0,"無香料のみ可　",1,"あり",1,"男子の髪を適度の長さに整える（長髪の禁止？）",1,"流行性の高いものは禁止",1,"禁止",1,"禁止",1,"白",1,"くるぶしが隠れるもの",0,"明記なし",0,"ジョギングシューズ",1,"黒、紺、茶",1,"黒、紺、茶、灰色系",1,"スクールコート、ダッフルコート、Pコート",0,"制限なし",0,"なし（ベストのみ）",0,"女子は防寒着をベストで代用可能",0,"ズボン選択可能",1,"膝が隠れる",0,"明記なし",1,"黒",1,"黒、紺、茶",0,"明記なし"]
["池上中","明記なし","学校生活の流れ","明記なし",10,0,"明記なし",0,"明記なし",0,"明記なし",1,"無言推奨",1,"整列移動",0,"明記なし",0,"明記なし",1,"許可制",0,"明記なし",0,"なし",0,"性差なし",1,"極端な刈り上げの禁止",1,"禁止",1,"禁止",1,"白",1,"くるぶしが隠れるもの",0,"明記なし",0,"ジョギングシューズ",1,"黒、紺",1,"無地、紺色系、黒色形\n",1,"フードなし。お尻が隠れる長さから膝が隠れる程度のもの",0,"明記なし",0,"なし（ベストのみ）",0,"女子のみベスト着用可",0,"性差なし",0,"明記なし",0,"明記なし",0,"明記なし",1,"黒、茶",1,"布製、革製"]
["衣笠中","明記なし","衣笠中学校のきまり","明記なし","明記なし",0,"明記なし",1,"禁止",0,"制服か体操服",0,"明記なし",0,"明記なし",0,"明記なし",0,"明記なし",1,"許可制",0,"明記なし",0,"なし",0,"性差なし",0,"明記なし",0,"明記なし",1,"禁止",1,"白",1,"くるぶしが隠れるもの",0,"明記なし",0,"ランニングシューズ",1,"黒、紺、茶",1,"黒、紺、茶、白、グレー、ベージュ",1,"ダッフルコート、Pコート",0,"制限なし",1,"あり",1,"夏期、女子はベスト着用",1,"スカート",1,"膝が隠れる長さ",0,"明記なし",0,"明記なし",1,"黒、紺、茶",1,"華美でないもの"]
["大矢部中","明記なし","学校生活を楽しく過ごすために","明記なし","明記なし",1,"パン、おにぎり、学用品のみ購入可能",1,"禁止",0,"明記なし",0,"明記なし",0,"明記なし",1,"禁止",1,"禁止",1,"禁止",0,"明記なし",0,"なし",0,"性差なし",0,"明記なし",1,"禁止",1,"禁止",1,"白、無地",0,"明記なし",0,"明記なし",1,"運動が行える紐靴",1,"黒、茶、紺",1,"黒、紺、茶、灰、白、ベージュ",1,"Pコート、ダッフルコート",0,"明記なし",1,"あり",1,"男子のみ防寒着のベスト着用可能",1,"暗にスカートと規定",1,"膝が隠れる長さ",0,"明記なし",0,"明記なし",1,"栗、紺、茶",0,"明記なし"]
["大津中","明記なし","(名称不明)","明記なし",10,1,"パン、おにぎりのみ購入可能",0,"明記なし",0,"明記なし",1,"禁止",0,"明記なし",0,"明記なし",0,"明記なし",1,"禁止",0,"明記なし",0,"なし",0,"性差なし",1,"アシンメトリー、ツーブロック、モヒカン禁止",1,"禁止",1,"禁止",1,"白",1,"くるぶしが隠れるもの",0,"明記なし",0,"ランニングシューズ",1,"黒、紺、茶",1,"黒、紺、濃いグレー",1,"スクールコート、ダッフルコート、Pコート",0,"制限なし",1,"あり",0,"明記なし",0,"ズボン選択可能",1,"膝が隠れる",0,"明記なし",0,"明記なし",1,"黒、茶の単色",0,"明記なし"]
["馬堀中","明記なし","馬堀中学校の約束","明記なし",10,1,"パン、おにぎりのみ購入可能",1,"一部可",0,"明記なし",0,"明記なし",0,"明記なし",1,"許可制",1,"許可制",1,"許可制",0,"明記なし",1,"あり(男子のみ)",1,"男子の長髪を想定していない",1,"2ブロック、モヒカン禁止",1,"禁止",1,"禁止",1,"白",1,"くるぶしが隠れるもの",0,"明記なし",0,"スポーツシューズ",1,"黒、紺、茶",1,"紺･黒･灰色･茶の無地\n",1,"スクールコート、ダッフルコート、Pコート",0,"制限なし",0,"なし",0,"性差なし",0,"ズボン選択可能",1,"膝が隠れる程度",0,"明記なし",0,"明記なし",1,"黒、紺、白、グレー、茶、の無地単色",1,"かぶりタイプ"]
["浦賀中","明記なし","(名称不明)","明記なし","明記なし",1,"パン、おにぎりのみ購入可能",1,"休日の部活動のみ可",0,"明記なし",0,"明記なし",0,"明記なし",0,"明記なし",0,"明記なし",1,"許可制",0,"明記なし",0,"なし",0,"性差なし",0,"明記なし",1,"禁止",1,"禁止",1,"白",1,"くるぶしが隠れるもの",0,"明記なし",0,"トレーニングシューズ\nランニングシューズ",1,"黒、紺、茶",1,"黒･紺･茶･灰色の無地",0,"明記なし",0,"制限なし",1,"あり",0,"明記なし",1,"暗にスカートと規定",1,"膝が隠れる程度",0,"明記なし",0,"明記なし",0,"明記なし",1,"片開きスナップボタン4ヶ付き"]
["鴨居中","明記なし","鴨居中の生活","明記なし",10,1,"パン、おにぎりのみ購入可能",1,"一部可",1,"体操服",0,"明記なし",0,"明記なし",1,"禁止",1,"禁止",1,"禁止",0,"無香料のみ可\nスプレー不可",0,"なし",0,"性差なし",1,"極端な刈り上げの禁止",1,"禁止",1,"禁止",1,"白",0,"明記なし",0,"色指定なし",0,"ランニングシューズ\nアップシューズ\n",1,"黒、紺、茶",0,"明記なし",0,"明記なし",0,"制限なし",1,"あり",1,"夏期女子のみベスト着用",1,"スカート",1,"膝裏が隠れる長さ",1,"使用可能",1,"肌色",1,"黒、茶",0,"明記なし"]
["岩戸中","明記なし","岩戸中学校　生活のきまり(校則)","明記なし",10,1,"禁止",1,"一部可",0,"明記なし",0,"明記なし",1,"整列移動",1,"原則禁止",1,"原則禁止",1,"禁止",1,"禁止",0,"なし",0,"性差なし",1,"奇抜な髪型禁止",1,"禁止",1,"禁止",1,"白",1,"くるぶしが隠れるもの",0,"明記なし",0,"運動靴",1,"黒、紺、茶",0,"明記なし",1,"レインコート、Pコート、ダッフルコート",0,"制限なし",0,"なし",0,"性差なし",0,"性差なし",1,"膝が隠れる長さ",0,"明記なし",0,"明記なし",1,"黒、紺、茶の無地",0,"明記なし"]
["久里浜中","明記なし","学校生活のきまり","明記なし","明記なし",1,"パン、おにぎり、サンドイッチのみ購入可能",0,"明記なし",0,"制服か体操服",0,"明記なし",0,"明記なし",1,"原則禁止",1,"原則禁止",1,"禁止",0,"明記なし",0,"なし",0,"性差なし",1,"アシンメトリー、ツーブロック、ライン禁止",1,"禁止",1,"禁止",1,"白",1,"くるぶしが隠れるもの",0,"明記なし",0,"運動靴",1,"黒、紺、茶",0,"明記なし",1,"明記なし",0,"明記なし",0,"なし(ベストのみ)",1,"女子はワイシャツの上にベスト着用",0,"性差なし",0,"明記なし",1,"使用可能",1,"肌色",1,"黒、紺の単色",0,"明記なし"]
["神明中","明記なし","学校生活のきまり","明記なし",10,1,"パン、おにぎりのみ購入可能",1,"禁止",1,"原則制服",1,"無言推奨",1,"整列移動",1,"原則禁止",1,"原則禁止",1,"禁止",1,"禁止",0,"なし",0,"性差なし",1,"2ブロック、モヒカン禁止",1,"禁止",1,"禁止",1,"白、黒、グレー　",1,"くるぶしが隠れるもの",0,"明記なし",0,"運動靴",1,"黒、紺、茶",1,"黒紺グレー",0,"明記なし",0,"明記なし",0,"なし",0,"性差なし",0,"ズボン選択可能",1,"膝頭とひかがみが隠れる長さ",1,"使用可能",1,"ベージュ･黒",1,"黒、紺、茶",1,"穴式、スライド式"]
["野比中","明記なし","学校生活を有意義に過ごすための約束","明記なし",10,1,"登校中の購入禁止",1,"可",0,"明記なし",0,"明記なし",0,"明記なし",0,"明記なし",0,"明記なし",1,"禁止",0,"明記なし",0,"なし",0,"性差なし",0,"明記なし",1,"禁止",1,"禁止",1,"白",1,"くるぶしが隠れるもの",0,"明記なし",0,"ランニングシューズ",1,"黒、紺、茶",0,"明記なし",0,"明記なし",0,"明記なし",1,"あり",1,"アイロン校章は男子はYシャツの胸ポケットに、女子はベストの左胸につける。",0,"明記なし",0,"明記なし",1,"使用可能",1,"黒",1,"黒、紺、茶",0,"明記なし","標準服が何かを定める文書の不足ありか"]
["北下浦中","明記なし","学校生活の決まりと約束","明記なし",10,1,"休日部活動時、おにぎりとパンのみ可能",0,"明記なし",1,"原則制服",0,"明記なし",1,"整列移動",1,"許可制",1,"むやみに行かない",1,"禁止",0,"無色、無臭、無香料のみ使用可。スプレータイプは禁止",0,"なし",0,"性差なし",1,"ファッション性を帯びた髪型の禁止",1,"禁止",1,"禁止",1,"白(メーカーのワンポイントまで可)",1,"くるぶしが隠れるもの",0,"明記なし",1,"ひもで結ぶ運動靴、ハイカットは不可",1,"黒、茶、紺",1,"黒、紺、灰",1,"ダッフルコート、スクールコート、Pコート",0,"制限なし",0,"なし(ベストのみ)",1,"女子はワイシャツの上にベスト着用",0,"性差なし",1,"膝が完全に隠れる長さ",1,"使用可能",1,"肌色",1,"黒、紺、茶",1,"ファッション的なものは不可"]
["長沢中","明記なし","生活の決まり","明記なし","明記なし",1,"禁止",1,"休日や再登校の場合は可能",0,"明記なし",0,"明記なし",0,"明記なし",1,"禁止",1,"禁止",1,"必要な場合は事前連絡",0,"無香料の汗拭きシートのみ使用可能",0,"なし",0,"性差なし",1,"ファッション性の高い髪型は禁止",1,"禁止",1,"禁止",1,"白、無地",1,"くるぶしが隠れるもの",0,"明記なし",0,"運動靴",1,"黒、茶、紺",1,"黒、紺、茶、灰、ベージュ",0,"明記なし",0,"制限なし",0,"なし",0,"性差なし",0,"性差なし",1,"ひざを覆う程度",1,"使用可能",1,"ベージュ",1,"黒、紺、茶",1,"華美でないもの"]
["長井中","明記なし","学校生活の約束事","明記なし",10,1,"禁止",1,"休日や再登校の場合は可能",1,"原則制服(天候不順の場合は体操服着用可)",0,"明記なし",0,"明記なし",1,"禁止",1,"禁止",1,"保護者の連絡が必要",0,"明記なし",1,"あり(男子のみ)",1,"男子の長髪を想定していない、男子は襟足が出ないようにする",1,"ツーブロックなどの加工は禁止",1,"禁止",1,"禁止",1,"白",1,"スクールソックスまたはスポーツソックス",0,"明記なし",1,"ひも付きのスポーツシューズ",1,"黒、茶、紺",1,"黒、紺基調",1,"ウール系のもの",0,"制限なし",1,"あり",0,"明記なし",1,"スカート",1,"膝立ちして丈がゆかにつく長さ",1,"使用可能",0,"明記なし",1,"黒",1,"派手なデザインは避ける"]
["武山中","明記なし","学校生活のきまり","明記なし",10,1,"パン、おにぎりのみ購入可能",1,"学校指定のトレーナの上にブレザーを着るようにする",1,"原則制服",0,"明記なし",0,"明記なし",1,"禁止",1,"禁止",1,"原則禁止",1,"無香料のもののみ使用可。スプレー式、シート式のものは不可",0,"なし",0,"性差なし",1,"ツーブロックなど禁止",1,"禁止",1,"禁止",1,"白(ライン不可)",1,"くるぶしが隠れるもの",0,"明記なし",0,"体育の授業に適するもの",1,"黒、茶、紺",1,"黒、紺、灰で無地のもの",1,"スクールコート、ダッフルコート、Pコート",0,"制限なし",0,"なし",0,"性差なし",0,"性差なし",1,"膝の真ん中にスカートの裾が来るようにする",1,"使用可能",1,"ベージュで無地のもの",1,"黒、茶、紺の無地",0,"明記なし"]
["大楠中","明記なし","中学校生活での約束","明記なし",10,1,"禁止",1,"禁止",0,"明記なし",0,"明記なし",1,"整列移動",1,"禁止",1,"禁止",1,"必要な場合は事前連絡",0,"明記なし",0,"なし",0,"性差なし",1,"奇抜な髪型の禁止",1,"禁止",1,"禁止",1,"白",1,"くるぶしが隠れるもの",0,"明記なし",0,"体育の授業に使える運動靴",1,"黒、茶、紺",1,"黒、紺の無地のもの",1,"ジャンパー、フリース、ダウンコートは禁止",0,"制限なし",0,"なし",0,"性差なし",0,"性差なし",1,"膝とひかがみが隠れるようにする",0,"明記なし",0,"明記なし",1,"黒、茶、紺　　",1,"学生服にふさわしいもの　　　　"]
[{"$nulls":5},{"$f":"SUM(F3:F25)","v":20},null,{"$f":"SUM(H3:H25)","v":16},null,{"$f":"SUM(J3:J25)","v":8},null,{"$f":"SUM(L3:L25)","v":3},null,{"$f":"SUM(N3:N25)","v":7},null,{"$f":"SUM(P3:P25)","v":15},null,{"$f":"SUM(R3:R25)","v":14},null,{"$f":"SUM(T3:T25)","v":23},null,{"$f":"SUM(V3:V25)","v":5},null,{"$f":"SUM(X3:X25)","v":7},null,{"$f":"SUM(Z3:Z25)","v":8},null,{"$f":"SUM(AB3:AB25)","v":19},null,{"$f":"SUM(AD3:AD25)","v":22},null,{"$f":"SUM(AF3:AF25)","v":23},null,{"$f":"SUM(AH3:AH25)","v":22},null,{"$f":"SUM(AJ3:AJ25)","v":21},null,{"$f":"SUM(AL3:AL25)","v":2},null,{"$f":"SUM(AN3:AN25)","v":6},null,{"$f":"SUM(AP3:AP25)","v":22},null,{"$f":"SUM(AR3:AR25)","v":16},null,{"$f":"SUM(AT3:AT25)","v":17},null,{"$f":"SUM(AV3:AV25)","v":0},null,{"$f":"SUM(AX3:AX25)","v":13},null,{"$f":"SUM(AZ3:AZ25)","v":8},null,{"$f":"SUM(BB3:BB25)","v":8},null,{"$f":"SUM(BD3:BD25)","v":20},null,{"$f":"SUM(BF3:BF25)","v":11},null,{"$f":"SUM(BH3:BH25)","v":10},null,{"$f":"SUM(BJ3:BJ25)","v":21},null,{"$f":"SUM(BL3:BL25)","v":14}]